bitfinex-derivatives/quotes_ETHF0:USTF0_20250730
["timestamp","ask_amount","ask_price","bid_price","bid_amount"]
[1753886765990,42.73600588,3797.0,3796.9,21.8216]
[1753886767487,41.67540588,3797.0,3796.9,21.8216]
[1753886768490,4.40706,3796.8,3796.7,1.3338]
[1753886768679,5.27228,3796.7,3796.6,0.52678]
[1753886769085,5.27228,3796.7,3796.5,18.99379]
[1753886769389,4.7455,3796.6,3796.5,1.42109]
[1753886769694,4.7455,3796.6,3796.5,19.88809]
[1753886769996,40.80490588,3797.0,3796.3,0.52682]
[1753886769997,4.7455,3796.4,3796.3,0.52682]
[1753886770193,4.7455,3796.4,3796.3,18.99382]
[1753886770394,4.7455,3796.4,3796.3,19.88812]
[1753886770594,4.7455,3796.4,3796.3,22.34542]
[1753886771091,3.8803,3796.8,3796.7,1.86056]
[1753886771294,0.5895,3796.8,3796.7,1.86056]
[1753886771484,0.5895,3796.8,3796.7,20.32656]
[1753886771684,0.5895,3796.8,3796.7,22.34436]
[1753886771989,41.67540588,3797.0,3796.9,1.86054]
[1753886772290,40.80490588,3797.0,3796.7,0.52677]
[1753886772496,4.40711,3796.4,3796.3,1.4637]
[1753886772694,5.27236,3796.1,3796.0,3.87846]
[1753886772992,0.5895,3796.1,3796.0,3.87846]
[1753886773395,1.46,3796.8,3796.7,0.52677]
[1753886773694,1.46,3796.8,3796.7,3.87837]
[1753886773896,42.26,3796.8,3796.7,3.87837]
[1753886774098,3.8803,3796.5,3796.4,3.87841]
[1753886774296,4.7455,3796.5,3796.3,0.52682]
[1753886774598,3.8803,3796.4,3796.3,21.8166]
[1753886774799,42.7311,3796.8,3796.7,3.3516]
[1753886774986,41.6705,3796.8,3796.7,3.3516]
[1753886775189,40.8,3796.8,3796.7,3.3516]
[1753886775392,41.6705,3796.8,3796.7,3.3516]
[1753886775696,4.7455,3796.6,3796.5,1.42109]
[1753886775899,0.52687,3796.1,3795.6,1.1235]
[1753886776198,0.52687,3796.1,3795.4,2.66536]
[1753886776199,3.8803,3796.0,3795.9,2.98418]
[1753886776385,2.8197,3796.3,3796.2,2.98414]
[1753886776588,3.8803,3796.3,3796.2,3.87844]
[1753886776988,3.8803,3796.3,3795.2,4.56871267]
[1753886776989,2.8144,3796.3,3795.2,4.56871267]
[1753886777195,1.46,3795.6,3795.5,22.34354]
[1753886777593,2.0561,3795.6,3795.5,3.87854]
[1753886777900,3.8803,3795.6,3795.5,22.34354]
[1753886778099,4.7455,3795.6,3795.5,22.34354]
[1753886778402,3.8803,3795.6,3795.5,22.34354]
[1753886778698,0.8705,3796.6,3795.6,1.1235]
[1753886778999,2.0561,3795.7,3795.6,3.87852]
[1753886779196,2.8197,3795.7,3795.6,3.87852]
[1753886779402,43.6197,3795.7,3795.6,3.87852]
[1753886781098,2.0561,3796.2,3796.1,0.52686]
[1753886781295,1.46,3796.2,3796.1,3.87846]
[1753886781602,0.5895,3796.5,3796.4,3.87841]
[1753886781799,2.06100588,3797.0,3796.9,3.87834]
[1753886781994,2.06100588,3797.0,3796.9,3.3516]
[1753886782399,43.92160588,3797.0,3796.9,3.3516]
[1753886782897,42.86100588,3797.0,3796.9,3.3516]
[1753886783297,43.92160588,3797.0,3796.9,3.3516]
[1753886787302,42.86100588,3797.0,3796.9,3.3516]
[1753886787700,40.80490588,3797.0,3796.9,3.3516]
[1753886788609,41.67540588,3797.0,3796.9,3.3516]
[1753886790904,41.62690588,3797.0,3796.9,3.3516]
[1753886791307,0.00490588,3797.0,3796.9,3.3516]
[1753886791510,0.00490588,3797.0,3796.9,21.8106]
[1753886791910,2.1484,3797.9,3797.8,1.80572]
[1753886792102,3.9887,3797.9,3797.8,3.81552]
[1753886793302,0.52642,3799.3,3798.5,0.8392]
[1753886793506,0.822,3799.1,3798.8,0.52648]
[1753886793812,0.73534989,3799.0,3798.9,2.0098]
[1753886794002,40.8,3799.4,3799.2,0.52641]
[1753886794211,0.73450446,3799.3,3799.2,2.53621]
[1753886794510,0.73450446,3799.3,3799.2,22.48487993]
[1753886794712,0.73450446,3799.3,3799.2,27.48487993]
[1753886795011,40.8,3799.8,3799.7,2.53616]
[1753886795208,40.8,3799.8,3799.7,20.99416]
[1753886795209,0.73403721,3799.8,3799.7,20.99416]
[1753886795512,0.2,3799.9,3799.8,2.0098]
[1753886796608,1.022,3799.9,3799.8,2.0098]
[1753886796805,1.022,3799.9,3799.8,20.4718]
[1753886797107,2.0403,3799.9,3799.7,18.46]
[1753886797308,2.6901,3799.8,3799.7,19.2992]
[1753886797510,1.34834,3799.8,3799.7,2.0098]
[1753886797811,0.822,3799.8,3799.7,2.0098]
[1753886798111,0.52634,3799.8,3799.7,2.0098]
[1753886798513,1.34834,3799.8,3799.7,2.0098]
[1753886798715,1.8403,3799.8,3799.7,2.0098]
[1753886799012,0.2,3799.9,3799.8,2.53614]
[1753886800104,0.2,3799.9,3799.8,2.0098]
[1753886800318,2.0403,3799.9,3799.8,2.0098]
[1753886800505,0.2,3799.9,3799.8,2.0098]
[1753886800705,0.2,3799.9,3799.8,2.53614]
[1753886800909,1.8718,3799.9,3799.1,0.8392]
[1753886801110,1.8403,3799.8,3799.3,0.8392]
[1753886801410,0.822,3799.6,3799.5,2.0098]
[1753886802108,0.52637,3799.7,3799.5,2.0098]
[1753886802416,0.52637,3799.7,3798.8,18.468]
[1753886802417,0.822,3799.8,3799.7,2.0098]
[1753886803712,3.7887,3799.8,3799.7,3.2889]
[1753886803909,4.6385,3799.8,3799.7,0.8392]
[1753886804106,1.9706,3799.3,3799.2,3.2889]
[1753886804310,1.9706,3799.3,3799.0,0.52644]
[1753886804311,2.7704,3798.9,3798.8,1.3889]
[1753886804513,3.7887,3798.9,3798.8,1.3889]
[1753886804905,1.8403,3798.6,3798.5,1.1706]
[1753886805110,1.8403,3798.6,3798.5,2.0098]
[1753886806509,0.822,3798.6,3798.5,2.0098]
[1753886806714,0.52647,3798.9,3798.5,0.52652]
[1753886806715,0.52649,3798.8,3798.5,0.52652]
[1753886806914,0.822,3798.7,3798.6,2.0098]
[1753886807311,40.8,3798.7,3797.8,1.49066993]
[1753886807610,40.8,3798.7,3798.6,2.0098]
[1753886807811,40.8,3798.7,3798.6,3.50046993]
[1753886808122,0.822,3799.1,3798.7,2.0098]
[1753886808305,0.8498,3799.5,3798.9,2.0098]
[1753886808306,0.822,3799.4,3798.9,2.0098]
[1753886808519,41.622,3799.3,3799.2,2.53622]
[1753886808912,40.8,3799.3,3799.2,2.53622]
[1753886809120,1.0183,3799.6,3799.4,0.52639]
[1753886809315,0.822,3799.5,3799.4,0.52639]
[1753886809516,41.622,3799.5,3799.4,0.52639]
[1753886809715,19.275,3799.8,3799.7,0.52635]
[1753886809914,20.2933,3799.8,3799.7,2.0098]
[1753886810114,0.52636,3799.7,3799.5,1.36558]
[1753886810312,0.52638,3799.5,3799.4,0.52639]
[1753886810616,1.8403,3799.5,3799.4,2.53619]
[1753886810814,0.822,3799.5,3799.4,2.53619]
[1753886811011,1.8403,3799.5,3799.4,1.36559]
[1753886811215,1.8403,3799.5,3799.4,2.53619]
[1753886812411,1.8403,3799.5,3799.4,2.0098]
[1753886813214,60.1168,3799.8,3799.4,2.0098]
[1753886813215,40.8,3799.8,3799.5,0.52638]
[1753886813518,0.822,3799.7,3799.6,0.8392]
[1753886813716,0.822,3799.7,3799.6,2.4497]
[1753886813920,0.822,3799.7,3799.6,3.2889]
[1753886814421,40.8,3799.8,3799.7,1.80546]
[1753886814720,40.8,3799.8,3799.7,3.81526]
[1753886814914,0.2,3799.9,3799.8,2.0098]
[1753886815219,0.2,3799.9,3799.8,3.2889]
[1753886816625,0.7761,3799.9,3799.8,3.2889]
[1753886816818,3.386,3799.9,3799.8,3.2889]
[1753886817014,2.3979,3799.9,3799.8,3.2889]
[1753886817416,2.9704,3799.9,3799.7,0.52636]
[1753886817620,3.7585,3799.8,3799.7,3.81526]
[1753886817827,0.2,3799.9,3799.8,3.2889]
[1753886818424,2.9704,3799.9,3799.8,3.2889]
[1753886818623,5.36474,3799.9,3799.7,0.52636]
[1753886818814,4.6166,3799.8,3799.7,0.52636]
[1753886819019,4.6166,3799.6,3799.5,0.52637]
[1753886819219,3.7284,3799.6,3799.5,2.72647]
[1753886819419,1.9952,3799.6,3799.5,3.90657]
[1753886819624,1.4426,3799.6,3799.5,3.90657]
[1753886820025,1.6426,3799.9,3799.8,3.90654]
[1753886820225,3.7284,3799.6,3799.5,1.35208]
[1753886820422,4.6166,3799.6,3799.5,0.52638]
[1753886820725,4.6166,3799.6,3799.4,0.52639]
[1753886820924,3.7574,3799.5,3799.4,0.52639]
[1753886821223,1.8894,3799.3,3799.2,3.3802]
[1753886821430,2.7486,3798.6,3798.5,1.94572]
[1753886821726,3.7284,3798.6,3798.5,3.90672]
[1753886821921,43.5486,3798.6,3798.5,3.90672]
[1753886822524,41.3834,3798.6,3798.5,3.90672]
[1753886822724,0.5834,3798.6,3798.5,3.90672]
[1753886823325,40.8,3798.8,3798.7,1.9009]
[1753886823524,40.8,3798.8,3798.7,3.9067]
[1753886823717,40.8,3798.8,3798.7,5.39736993]
[1753886823916,0.8882,3799.7,3798.7,5.39736993]
[1753886823917,0.5834,3799.7,3799.6,0.52636]
[1753886824127,2.7486,3799.7,3799.6,3.90656]
[1753886824629,3.7284,3799.7,3799.6,3.3802]
[1753886824927,4.6166,3799.7,3799.6,3.3802]
[1753886825133,4.6166,3799.7,3799.5,0.52638]
[1753886825324,3.7284,3799.6,3799.5,3.08088]
[1753886825519,40.8,3799.8,3799.7,1.11986]
[1753886825724,40.8,3799.8,3799.7,3.08086]
[1753886825929,40.8,3799.8,3799.7,3.90656]
[1753886826831,1.6426,3799.9,3799.8,3.3802]
[1753886827028,0.2,3799.9,3799.8,3.3802]
[1753886829438,2.7776,3801.2,3801.1,0.52615]
[1753886829735,43.42194005,3801.2,3801.0,0.52617]
[1753886830037,5.34914005,3801.1,3801.0,0.52617]
[1753886830228,3.8632,3801.0,3800.9,0.52618]
[1753886830427,0.73254005,3801.0,3800.9,3.90638]
[1753886831033,2.7666,3801.3,3801.2,1.11965]
[1753886831229,4.47880467,3801.3,3801.2,3.90635]
[1753886831424,5.36700467,3801.3,3801.2,1.94535]
[1753886831638,5.36700467,3801.3,3801.2,1.35185]
[1753886832130,2.74560467,3801.3,3801.2,3.90635]
[1753886832324,0.75040467,3801.3,3801.2,3.90635]
[1753886832535,1.6426,3801.9,3801.8,3.08057]
[1753886832730,1.6426,3801.9,3801.8,3.90627]
[1753886832926,41.5834,3801.9,3801.8,3.90627]
[1753886833126,42.4426,3801.9,3801.8,3.90627]
[1753886833332,43.4224,3801.9,3801.8,3.90627]
[1753886834236,43.4224,3801.9,3801.8,0.8257]
[1753886834535,4.6166,3801.5,3801.4,1.35181]
[1753886834933,4.6166,3801.5,3801.4,3.12541]
[1753886835436,3.7284,3801.5,3801.4,3.90631]
[1753886836133,0.8592,3801.7,3801.6,1.30699]
[1753886836334,1.4426,3801.7,3801.6,3.90629]
[1753886836733,41.52606,3801.9,3801.6,3.90629]
[1753886836935,3.7284,3801.8,3801.7,3.3802]
[1753886837644,1.9952,3801.8,3801.7,3.3802]
[1753886838036,1.4426,3801.8,3801.7,3.3802]
[1753886839139,1.9952,3801.8,3801.7,3.3802]
[1753886839538,2.7486,3801.8,3801.7,3.3802]
[1753886840641,3.7284,3801.8,3801.7,3.3802]
[1753886841535,0.52609,3801.6,3801.5,0.52611]
[1753886841736,4.6166,3801.6,3801.5,1.94531]
[1753886842141,1.8894,3801.3,3801.2,1.11965]
[1753886842334,4.6166,3801.3,3801.2,2.5993]
[1753886842539,4.25458,3801.0,3800.8,0.52619]
[1753886842737,3.7284,3800.9,3800.8,3.90639]
[1753886843742,3.7284,3800.9,3800.8,2.2001]
[1753886843942,4.6166,3800.9,3800.8,2.2001]
[1753886844144,5.1428,3800.9,3800.7,0.52622]
[1753886844333,1.306,3800.7,3800.6,3.12552]
[1753886844538,3.7284,3800.7,3800.6,3.90642]
[1753886844934,1.8894,3800.7,3800.1,1.1801]
[1753886845145,1.31533,3801.4,3800.0,57.65879]
[1753886845146,3.7284,3800.6,3800.5,3.3802]
[1753886845343,2.8692,3801.0,3800.9,1.90059]
[1753886845642,1.8894,3801.0,3800.9,3.90639]
[1753886845843,2.7486,3801.0,3800.9,3.90639]
[1753886846439,0.9798,3801.0,3800.4,2.31636993]
[1753886846640,2.7486,3800.5,3800.4,1.90066]
[1753886847133,2.7486,3800.5,3800.4,3.90646]
[1753886847337,0.5834,3800.5,3800.4,3.90646]
[1753886847534,1.9952,3800.9,3800.8,2.7263]
[1753886847737,2.7486,3800.9,3800.8,3.3802]
[1753886848143,4.6166,3800.9,3800.8,3.3802]
[1753886848343,1.83223,3800.6,3800.2,1.49066993]
[1753886848545,1.546,3800.1,3800.0,0.52631]
[1753886848845,4.43,3800.1,3800.0,0.8709]
[1753886849042,45.23,3800.1,3800.0,0.8709]
[1753886849238,3.5705,3800.0,3799.9,3.08872]
[1753886849438,4.43,3800.0,3799.9,3.79892]
[1753886849642,3.5705,3800.0,3799.9,5.28958993]
[1753886849849,1.3661,3800.0,3799.9,5.28958993]
[1753886850048,0.542,3800.0,3799.9,5.28958993]
[1753886850445,1.3661,3800.0,3799.9,5.28958993]
[1753886851154,40.8,3800.1,3799.9,4.41868993]
[1753886851348,40.8,3800.1,3800.0,3.2726]
[1753886852152,1.8966,3800.4,3800.3,3.2726]
[1753886852449,3.6059,3800.2,3800.1,0.8709]
[1753886852649,45.23,3800.2,3800.1,3.2726]
[1753886852951,3.5705,3800.2,3800.1,3.2726]
[1753886853252,44.3705,3800.2,3800.1,3.2726]
[1753886853454,0.8241,3800.1,3800.0,0.52631]
[1753886853647,42.27829,3800.2,3799.5,1.31597]
[1753886853648,3.5705,3800.0,3799.9,3.79892]
[1753886854158,4.43,3800.0,3799.9,3.79892]
[1753886854549,3.5705,3800.0,3799.9,3.79892]
[1753886855047,4.43,3800.0,3799.9,3.2726]
[1753886855348,3.5705,3800.0,3799.9,3.2726]
[1753886855549,2.6185,3800.0,3799.9,3.2726]
[1753886855746,3.14482,3800.0,3799.8,0.52634]
[1753886855947,4.43,3799.9,3799.8,0.8709]
[1753886857545,3.5705,3799.9,3799.8,3.2726]
[1753886858247,0.8241,3799.5,3799.4,18.96639]
[1753886858447,0.8241,3799.5,3799.4,22.85875993]
[1753886858448,2.6185,3799.5,3799.4,22.85875993]
[1753886858652,1.0725,3800.0,3799.9,1.80083]
[1753886858849,41.6241,3800.2,3800.1,3.7989]
[1753886859153,41.6241,3800.2,3800.1,3.2726]
[1753886859849,40.8,3800.2,3800.1,3.2726]
[1753886861457,37.898,3801.3,3800.1,1.9981]
[1753886861659,2.6185,3800.8,3800.7,2.76516993]
[1753886861953,43.4185,3800.8,3800.7,3.29138993]
[1753886862157,2.6185,3800.8,3800.7,5.28948993]
[1753886862355,0.542,3800.8,3800.7,5.28948993]
[1753886862957,1.3661,3800.8,3800.7,5.28948993]
[1753886864058,2.6185,3800.8,3800.7,5.28948993]
[1753886865356,1.8966,3800.8,3800.7,5.28948993]
[1753886865558,0.542,3800.8,3800.7,5.28948993]
[1753886866954,1.3661,3800.8,3800.7,5.28948993]
[1753886867856,1.8966,3800.8,3800.7,5.28948993]
[1753886869270,2.6185,3800.8,3800.7,5.28948993]
[1753886869563,4.43,3800.7,3800.6,1.39712]
[1753886869951,4.43,3800.7,3800.6,1.4352]
[1753886870555,4.43,3800.7,3800.6,3.2726]
[1753886870755,3.6059,3800.7,3800.5,0.52624]
[1753886870956,2.6539,3800.7,3800.6,3.2726]
[1753886871261,2.6539,3800.7,3800.6,0.8709]
[1753886871456,2.498,3800.6,3800.5,0.52624]
[1753886871660,2.498,3800.6,3800.5,3.79884]
[1753886871661,3.5705,3800.6,3800.5,3.79884]
[1753886871862,1.8966,3800.6,3800.5,3.79884]
[1753886872161,2.6185,3800.6,3800.5,3.79884]
[1753886872355,3.5705,3800.6,3800.5,3.79884]
[1753886873261,4.43,3800.6,3800.5,2.67164]
[1753886873466,4.43,3800.6,3800.5,3.79884]
[1753886873852,3.5705,3800.6,3800.5,3.79884]
[1753886874057,3.5705,3800.6,3800.5,3.2726]
[1753886874264,4.43,3800.6,3800.5,3.2726]
[1753886875063,4.43,3800.6,3800.5,1.4352]
[1753886875261,2.7464,3800.3,3800.2,21.72644993]
[1753886875461,3.5705,3800.3,3800.2,23.72454993]
[1753886875660,3.5705,3800.3,3800.2,22.23388]
[1753886876158,2.0245,3800.1,3800.0,1.0906]
[1753886876363,2.0245,3800.1,3800.0,1.4352]
[1753886876364,4.43,3800.1,3800.0,1.4352]
[1753886877063,4.42584,3799.8,3799.7,3.25126267]
[1753886877360,0.52637,3799.6,3799.5,3.25126267]
[1753886877560,45.23,3799.6,3799.5,3.25126267]
[1753886877859,45.23,3799.6,3799.5,3.81556267]
[1753886878058,45.23,3799.6,3799.5,4.12216267]
[1753886878556,1.2708,3799.3,3799.2,4.48028267]
[1753886878761,3.5919,3799.3,3799.2,6.90328267]
[1753886880658,4.4335,3799.3,3799.2,6.37686267]
[1753886880964,4.4335,3799.3,3799.2,3.25126267]
[1753886881167,1.27464,3799.4,3799.0,4.08996267]
[1753886881353,0.5516,3799.1,3799.0,3.25126267]
[1753886881555,0.5516,3799.2,3799.1,5.02694]
[1753886881962,0.5516,3799.2,3799.1,8.27820267]
[1753886882960,0.52635,3799.8,3799.5,0.52638]
[1753886883160,0.5516,3800.2,3800.1,1.2269]
[1753886883367,0.5516,3800.2,3800.1,4.5005]
[1753886883965,1.4025,3800.2,3800.1,4.5005]
[1753886885363,0.5516,3800.2,3800.1,4.5005]
[1753886885665,1.4025,3800.5,3800.4,1.7771]
[1753886885864,1.4025,3800.5,3800.4,4.20206]
[1753886886661,1.4025,3800.5,3800.4,3.6758]
[1753886887969,1.4025,3800.5,3800.4,3.1256]
[1753886889562,1.4025,3800.5,3800.4,1.363]
[1753886889764,1.4025,3800.5,3800.4,2.423]
[1753886890065,1.4025,3800.5,3800.4,3.1256]
[1753886891567,1.4025,3800.5,3800.4,3.6758]
[1753886892163,1.4025,3800.5,3800.4,4.5005]
[1753886893060,1.4025,3800.5,3800.4,3.6758]
[1753886895572,1.4025,3800.5,3800.4,3.1256]
[1753886896670,1.4025,3800.5,3800.4,3.9503]
[1753886896869,1.4025,3800.5,3800.4,4.5005]
[1753886897675,0.5516,3800.5,3800.4,4.5005]
[1753886899071,1.4025,3800.5,3800.4,4.5005]
[1753886899277,41.3262,3800.9,3800.8,4.5005]
[1753886899278,41.6509,3800.9,3800.8,4.5005]
[1753886899873,42.38380128,3800.9,3800.8,3.1256]
[1753886901876,41.6509,3800.9,3800.8,3.1256]
[1753886902077,42.38380128,3800.9,3800.8,3.1256]
[1753886902580,41.6509,3800.9,3800.8,4.5005]
[1753886902781,40.8,3800.9,3800.8,4.5005]
[1753886903377,0.5516,3801.3,3801.2,2.30325]
[1753886903575,0.5516,3801.3,3801.2,5.02665]
[1753886904676,1.4025,3801.3,3801.2,5.02665]
[1753886905479,1.4025,3801.3,3801.2,5.02210425]
[1753886905876,1.4025,3801.3,3801.2,1.36485]
[1753886906079,1.25902128,3801.4,3800.9,0.52618]
[1753886906080,1.4025,3801.0,3800.9,0.52618]
[1753886906378,42.93540128,3801.0,3800.9,1.36488]
[1753886906983,42.93540128,3801.0,3800.9,3.65178]
[1753886907378,42.93540128,3801.0,3800.9,3.12748]
[1753886907679,0.5516,3800.6,3800.5,0.52624]
[1753886907883,1.4025,3800.6,3800.5,2.11054]
[1753886908386,1.4025,3800.6,3800.5,2.94924]
[1753886908881,1.4025,3800.6,3800.5,3.65184]
[1753886909084,1.4025,3800.6,3800.5,4.31714]
[1753886909883,1.4025,3800.6,3800.5,5.13254]
[1753886910285,41.617,3801.0,3800.9,5.20909]
[1753886911285,41.617,3801.0,3800.9,4.6829]
[1753886912382,0.5708,3801.4,3801.3,5.20903]
[1753886912784,42.1878,3801.4,3801.3,5.20903]
[1753886913483,41.3708,3801.4,3801.3,5.20903]
[1753886913686,1.017,3801.9,3801.8,3.78456]
[1753886913982,20.0068,3801.9,3801.8,5.20896]
[1753886914195,61.53970128,3801.9,3801.8,5.20896]
[1753886914388,61.53970128,3801.9,3801.8,4.39356]
[1753886915285,42.3878,3801.9,3801.8,5.20896]
[1753886917491,42.3878,3801.9,3801.8,0.8605]
[1753886918490,1.91389,3801.6,3801.5,0.8605]
[1753886918685,2.64679128,3801.6,3801.5,0.8605]
[1753886918886,0.52615,3801.2,3801.1,1.1563]
[1753886919179,1.91403,3800.7,3800.6,0.8605]
[1753886919384,2.64693128,3800.7,3800.6,0.8605]
[1753886919584,43.44693128,3800.7,3800.6,0.8605]
[1753886919985,43.44693128,3800.7,3800.2,1.1563]
[1753886919986,1.91407,3800.3,3800.2,2.0168]
[1753886920189,21.05997128,3800.3,3800.2,0.8605]
[1753886920692,20.32707,3800.3,3800.2,3.3036]
[1753886920884,61.12707,3800.3,3800.2,3.3036]
[1753886921090,59.7848,3800.3,3800.2,4.6829]
[1753886921285,40.8,3800.3,3800.2,4.6829]
[1753886921589,41.617,3800.3,3800.2,4.6829]
[1753886922186,40.8,3800.3,3800.2,4.6829]
[1753886923184,0.52631,3800.0,3799.9,3.25126267]
[1753886923386,21.06001128,3800.0,3799.9,4.11176267]
[1753886923688,1.09714,3799.8,3799.7,3.25126267]
[1753886923883,21.05904128,3799.8,3799.7,0.8605]
[1753886924391,1.91417,3799.6,3799.5,4.11176267]
[1753886924592,20.32617,3799.6,3799.5,4.11176267]
[1753886924787,20.32617,3799.6,3799.5,0.8605]
[1753886925289,20.32717,3799.6,3799.5,2.5822]
[1753886925490,61.12717,3799.6,3799.5,3.3036]
[1753886926186,61.12717,3799.6,3799.5,2.5822]
[1753886926392,61.12717,3799.6,3799.5,2.0168]
[1753886926795,61.12717,3799.6,3799.5,2.5822]
[1753886926992,61.12717,3799.6,3799.5,3.3036]
[1753886927589,42.71417,3799.6,3799.5,3.3036]
[1753886927898,61.12517,3799.6,3799.5,3.3036]
[1753886928595,42.1878,3799.6,3799.5,3.8675]
[1753886928792,60.6008,3799.6,3799.5,4.6829]
[1753886928993,42.1878,3799.6,3799.5,4.6829]
[1753886929200,59.7828,3799.6,3799.5,4.6829]
[1753886929597,40.8,3799.6,3799.5,4.6829]
[1753886929790,40.8,3799.6,3799.4,1.25929128]
[1753886929791,0.5708,3800.3,3800.2,5.20919]
[1753886929994,2.64694128,3800.6,3800.5,3.3036]
[1753886930193,61.85894128,3800.6,3800.5,3.3036]
[1753886930698,42.1878,3800.6,3800.5,4.6829]
[1753886931194,42.1878,3800.6,3800.5,0.8605]
[1753886931497,0.52636,3799.7,3799.6,0.8605]
[1753886931695,20.24206128,3799.7,3799.6,0.8605]
[1753886932091,21.05906128,3799.7,3799.6,0.8605]
[1753886932292,61.85906128,3799.7,3799.6,0.8605]
[1753886932796,61.12616,3799.7,3799.6,0.8605]
[1753886933099,42.71416,3799.7,3799.6,2.4431]
[1753886933300,42.71416,3799.7,3799.6,4.6829]
[1753886933493,40.8,3799.7,3799.6,4.6829]
[1753886934592,40.8,3799.7,3799.6,3.3036]
[1753886934900,41.617,3799.7,3799.6,3.3036]
[1753886935301,41.617,3799.7,3799.6,0.8605]
[1753886935497,41.617,3799.7,3799.6,2.5822]
[1753886935498,60.028,3799.7,3799.6,2.5822]
[1753886935799,60.028,3799.7,3799.6,3.3036]
[1753886935995,59.211,3799.7,3799.6,5.20927]
[1753886936197,59.211,3799.7,3799.6,4.6829]
[1753886936591,60.028,3799.7,3799.6,4.6829]
[1753886936797,60.028,3799.7,3799.6,3.8675]
[1753886937100,60.028,3799.7,3799.6,4.6829]
[1753886937302,40.8,3799.7,3799.6,4.6829]
[1753886938094,0.817,3800.2,3799.9,1.8507]
[1753886938300,0.5708,3800.3,3800.2,4.6829]
[1753886938502,0.817,3800.5,3800.4,2.41746]
[1753886938701,60.027,3800.5,3800.4,4.6049]
[1753886939691,41.617,3800.5,3800.4,4.6049]
[1753886939900,60.026,3800.5,3800.4,4.6049]
[1753886940094,60.026,3800.5,3800.4,3.2535]
[1753886940302,1.05125,3799.7,3799.6,3.2053]
[1753886940597,1.85485,3799.7,3799.6,3.7706]
[1753886940797,1.85485,3799.7,3799.6,4.6049]
[1753886941298,1.85485,3799.7,3799.6,3.8188]
[1753886941501,1.85485,3799.7,3799.6,3.2535]
[1753886941700,1.05125,3799.7,3799.6,4.6049]
[1753886941904,41.85125,3799.7,3799.6,4.6049]
[1753886942097,42.65485,3799.7,3799.6,4.6049]
[1753886942297,41.3249,3799.7,3799.6,4.6049]
[1753886943297,42.1285,3799.7,3799.6,3.8188]
[1753886943691,42.1285,3799.7,3799.6,4.6049]
[1753886944797,41.3249,3799.7,3799.6,4.6049]
[1753886945105,42.1285,3799.7,3799.6,4.6049]
[1753886945898,41.3249,3799.7,3799.6,4.6049]
[1753886946498,42.1285,3799.7,3799.6,4.6049]
[1753886948202,42.1285,3799.7,3799.6,2.4986]
[1753886948412,42.1285,3799.7,3799.6,0.8343]
[1753886948804,42.1285,3799.7,3799.6,3.8188]
[1753886949003,42.1285,3799.7,3799.6,4.6049]
[1753886949404,42.1285,3799.7,3799.6,3.8188]
[1753886949597,60.5335,3799.7,3799.6,4.6049]
[1753886949797,60.5335,3799.7,3799.6,3.2535]
[1753886950008,60.5335,3799.7,3799.6,0.8343]
[1753886950401,60.5335,3799.7,3799.6,1.9276]
[1753886951105,60.5335,3799.7,3799.6,0.8343]
[1753886952005,60.5335,3799.7,3799.6,1.9276]
[1753886952409,60.5335,3799.7,3799.6,0.8343]
[1753886952806,61.26687808,3799.7,3799.6,2.4986]
[1753886953107,59.204,3799.7,3799.6,5.33827808]
[1753886953310,40.8,3799.7,3799.6,4.6049]
[1753886953812,41.6036,3799.7,3799.6,4.6049]
[1753886954206,40.8,3799.7,3799.6,4.6049]
[1753886956407,1.48571891,3800.7,3799.6,4.6049]
[1753886956408,1.3285,3800.5,3800.4,2.4192]
[1753886956611,19.7305,3800.5,3800.4,3.8188]
[1753886956804,19.7305,3800.5,3800.4,4.6049]
[1753886957006,61.05674,3800.5,3800.4,4.6049]
[1753886957702,61.05574,3800.5,3800.4,4.6049]
[1753886957908,61.05574,3800.5,3800.4,3.2535]
[1753886959315,61.05574,3800.5,3800.4,4.6049]
[1753886960310,41.3249,3800.5,3800.4,4.6049]
[1753886960510,59.7239,3800.5,3800.4,4.6049]
[1753886960909,41.3249,3800.5,3800.4,4.6049]
[1753886961105,42.1285,3800.5,3800.4,4.6049]
[1753886961308,42.1285,3800.5,3800.4,3.2535]
[1753886962611,42.1285,3800.5,3800.4,2.4986]
[1753886963517,42.1285,3800.5,3800.4,1.9276]
[1753886963712,1.3285,3800.2,3800.1,0.8343]
[1753886963915,1.85484,3799.8,3799.7,1.4053]
[1753886964111,21.73655891,3799.8,3799.7,1.4053]
[1753886964315,21.73655891,3799.8,3799.7,0.8343]
[1753886964613,62.53655891,3799.8,3799.7,0.8343]
[1753886964815,62.53655891,3799.8,3799.7,3.2535]
[1753886965013,61.05084,3799.8,3799.7,3.2535]
[1753886965320,62.53655891,3799.8,3799.7,2.4986]
[1753886965615,62.53655891,3799.8,3799.7,1.9276]
[1753886966206,62.53655891,3799.8,3799.7,0.8343]
[1753886967705,1.48571891,3799.8,3799.7,0.8343]
[1753886967912,0.52624,3800.5,3800.4,1.1363]
[1753886968115,1.05114,3800.5,3800.4,3.4188]
[1753886968412,62.05044,3800.5,3800.4,1.4053]
[1753886968619,62.05044,3800.5,3800.4,0.8343]
[1753886969112,0.52638,3799.5,3799.4,1.0903]
[1753886969309,2.4068,3799.5,3799.4,2.6057]
[1753886969716,20.8008,3799.5,3799.4,1.3759]
[1753886969914,21.6091,3799.5,3799.4,1.3759]